bitfinex/quotes_SOLUSD_20250321
["timestamp","ask_amount","ask_price","bid_price","bid_amount"]
[1742515949692,1.62,128.65,128.6,20.0]
[1742515949894,137.72,128.65,128.6,20.0]
[1742515950998,7.7736,128.64,128.6,20.0]
[1742515953092,27.2076,128.64,128.6,20.0]
[1742515954202,27.2076,128.64,128.58,20.0]
[1742515954587,163.3076,128.64,128.58,20.0]
[1742515955996,163.3076,128.64,128.56,20.0]
[1742515955997,18.64964886,128.61,128.56,20.0]
[1742515956198,27.2076,128.64,128.6,20.0]
[1742515957193,18.64964886,128.63,128.58,27.02]
[1742515957501,27.2161,128.6,128.55,20.0]
[1742515957716,1.5006,128.59,128.55,20.0]
[1742515959201,1.5006,128.59,128.49,1.97652314]
[1742515959202,154.74964886,128.58,128.52,20.0]
[1742515959500,136.1,128.57,128.52,20.0]
[1742515959704,27.2245,128.56,128.52,20.0]
[1742515961199,6.4943,128.55,128.52,20.0]
[1742515961710,7.7796,128.54,128.52,20.0]
[1742515962697,7.7796,128.54,128.5,27.0]
[1742515965392,7.7796,128.54,128.5,20.0]
[1742515965792,7.7796,128.54,128.5,20.063]
[1742515970701,9.2812,128.54,128.5,20.063]
[1742515971425,28.7303,128.54,128.5,20.063]
[1742515975230,9.2812,128.54,128.5,20.063]
[1742515978428,28.7303,128.54,128.5,20.063]
[1742515978941,9.2812,128.54,128.5,20.063]
[1742515979152,142.5943,128.55,128.52,20.0]
[1742515979153,150.3736,128.55,128.52,20.0]
[1742515979643,14.2736,128.55,128.52,20.0]
[1742515982031,33.7212,128.55,128.52,20.0]
[1742515982322,33.7212,128.55,128.5,20.063]
[1742515983920,72.6165,128.55,128.5,20.063]
[1742515985633,136.1,128.54,128.5,20.063]
[1742515985830,27.2309,128.53,128.5,20.063]
[1742515990934,7.7802,128.53,128.5,20.063]
[1742515993240,7.7791,128.55,128.52,20.0]
[1742515994140,143.8785,128.56,128.52,20.0]
[1742515997245,7.7785,128.56,128.52,20.0]
[1742516002252,143.9081,128.57,128.54,20.0]
[1742516002437,7.8081,128.57,128.54,20.0]
[1742516004547,0.03,128.57,128.56,20.0]
[1742516007754,0.03,128.57,128.54,20.0]
[1742516010940,0.03,128.57,128.56,20.0]
[1742516016102,0.03,128.57,128.52,20.063]
[1742516016355,7.5657,128.57,128.52,26.943]
[1742516017063,7.779,128.55,128.52,26.943]
[1742516017444,7.779,128.55,128.52,20.063]
[1742516020059,136.1,128.54,128.52,0.063]
[1742516022152,7.7802,128.53,128.52,0.063]
[1742516023661,143.8802,128.53,128.52,0.063]
[1742516025859,136.1,128.53,128.52,0.063]
[1742516027461,143.8802,128.53,128.52,0.063]
[1742516029463,7.7802,128.53,128.52,0.063]
[1742516031780,26.42924886,128.54,128.52,0.063]
[1742516035370,136.1,128.53,128.52,0.063]
[1742516036772,143.8802,128.53,128.52,0.063]
[1742516041972,26.42984886,128.53,128.52,0.063]
[1742516049669,7.7802,128.53,128.52,0.063]
[1742516051084,7.779,128.55,128.52,0.063]
[1742516051292,143.879,128.55,128.52,20.063]
[1742516053594,7.779,128.55,128.52,20.063]
[1742516053794,0.03,128.57,128.52,20.063]
[1742516053995,136.13,128.57,128.52,27.8438]
[1742516055099,136.13,128.57,128.52,20.063]
[1742516056004,143.9079,128.57,128.52,20.063]
[1742516056900,143.9079,128.57,128.52,332.063]
[1742516057302,136.13,128.57,128.52,339.8436]
[1742516059201,143.9079,128.57,128.52,339.8436]
[1742516059803,143.9079,128.57,128.52,27.8436]
[1742516064705,7.8079,128.57,128.52,27.8436]
[1742516068912,7.8079,128.57,128.52,339.8436]
[1742516070616,143.9079,128.57,128.52,339.8436]
[1742516072519,143.9079,128.57,128.52,27.8436]
[1742516074916,143.9079,128.57,128.52,20.063]
[1742516075295,143.9079,128.57,128.52,332.063]
[1742516076417,7.8079,128.57,128.52,332.063]
[1742516079323,7.8079,128.57,128.52,20.063]
[1742516081907,27.2525,128.57,128.52,20.063]
[1742516082325,7.779,128.55,128.52,20.063]
[1742516082826,27.2266,128.55,128.52,20.063]
[1742516083021,136.1,128.54,128.52,0.063]
[1742516083228,136.1,128.53,128.52,0.063]
[1742516084434,143.8802,128.53,128.52,0.063]
[1742516088133,7.7802,128.53,128.52,0.063]
[1742516094035,143.8802,128.53,128.52,0.063]
[1742516099840,162.52984886,128.53,128.52,0.063]
[1742516102834,26.42984886,128.53,128.52,0.063]
[1742516103741,7.7802,128.53,128.52,0.063]
[1742516104042,46.1604,128.57,128.52,0.063]
[1742516104043,19.475,128.57,128.52,0.063]
[1742516104339,7.8081,128.57,128.53,20.0]
[1742516108837,143.9081,128.57,128.53,20.0]
[1742516112653,163.3527,128.57,128.53,20.0]
[1742516114639,7.779,128.55,128.52,0.063]
[1742516114845,27.2266,128.55,128.52,0.063]
[1742516115050,18.64964886,128.54,128.52,0.063]
[1742516116562,26.42984886,128.53,128.52,0.063]
[1742516117049,26.42984886,128.53,128.52,0.0001]
[1742516121051,26.85633357,128.53,128.52,0.0001]
[1742516121758,26.714172,128.53,128.52,0.0001]
[1742516121950,26.85633357,128.53,128.52,0.0001]
[1742516123641,26.99849514,128.53,128.52,0.0001]
[1742516132651,27.02849514,128.53,128.52,0.0001]
[1742516133071,20.14216157,128.51,128.5,0.0001]
[1742516133281,38.79181043,128.51,128.5,0.0001]
[1742516134374,38.933972,128.51,128.5,0.0001]
[1742516134562,39.07613357,128.51,128.5,0.0001]
[1742516134762,20.42648471,128.51,128.5,0.0001]
[1742516135072,39.07613357,128.51,128.5,0.0001]
[1742516135372,46.85753357,128.51,128.5,0.0001]
[1742516138365,20.14216157,128.48,128.47,0.063]
[1742516138562,0.42648471,128.47,128.43,0.063]
[1742516138767,38.933972,128.44,128.43,0.063]
[1742516138976,19.07613357,128.44,128.43,0.063]
[1742516139291,25.77613357,128.44,128.43,0.0001]
[1742516139465,33.56183357,128.44,128.43,0.0001]
[1742516140580,26.43534886,128.44,128.43,0.0001]
[1742516140961,18.64964886,128.44,128.43,0.0001]
[1742516143076,26.43534886,128.44,128.43,0.0001]
[1742516143775,26.719672,128.44,128.43,0.0001]
[1742516143981,26.86183357,128.44,128.43,0.0001]
[1742516144497,28.54089514,128.44,128.43,0.0001]
[1742516145392,26.86183357,128.44,128.43,0.0001]
[1742516146965,27.00399514,128.44,128.43,0.0001]
[1742516147280,33.70399514,128.44,128.43,0.0001]
[1742516148082,40.00168072,128.44,128.43,0.0001]
[1742516149675,81.18432314,128.43,128.39,0.063]
[1742516149876,39.21829514,128.4,128.39,0.063]
[1742516150083,45.91829514,128.4,128.39,0.063]
[1742516150279,53.70639514,128.4,128.39,0.063]
[1742516153384,53.56423357,128.4,128.39,0.063]
[1742516153686,46.43774886,128.4,128.39,0.063]
[1742516153890,46.722072,128.4,128.39,0.063]
[1742516154267,46.43774886,128.4,128.39,0.063]
[1742516154463,46.722072,128.4,128.39,0.063]
[1742516154669,26.722072,128.4,128.39,0.063]
[1742516155478,18.64964886,128.4,128.39,0.063]
[1742516156172,46.43774886,128.4,128.39,0.063]
[1742516156373,38.64964886,128.4,128.39,0.063]
[1742516156889,46.43774886,128.4,128.39,0.063]
[1742516159094,18.64964886,128.4,128.39,0.063]
[1742516159471,26.43774886,128.4,128.39,0.063]
[1742516161081,136.1,128.42,128.39,0.063]
[1742516162976,143.887,128.42,128.39,0.063]
[1742516163598,143.887,128.42,128.39,312.063]
[1742516165580,143.887,128.42,128.39,0.063]
[1742516168502,143.887,128.42,128.39,312.063]
[1742516169487,136.13,128.42,128.39,312.063]
[1742516169792,0.03,128.42,128.4,20.0]
[1742516169993,0.03,128.42,128.4,27.7879]
[1742516170885,0.03,128.42,128.4,20.0]
[1742516171082,0.03,128.42,128.4,27.788]
[1742516172782,0.03,128.42,128.4,339.788]
[1742516177891,0.03,128.42,128.4,332.0]
[1742516179609,0.03,128.42,128.39,0.063]
[1742516180609,18.67964886,128.42,128.39,0.063]
[1742516182111,7.7875,128.41,128.39,0.063]
[1742516185098,26.46674886,128.42,128.39,0.063]
[1742516188011,0.03,128.42,128.4,20.0]
[1742516188406,0.03,128.42,128.4,26.7]
[1742516190118,0.03,128.42,128.4,34.4878]
[1742516190916,0.03,128.42,128.4,26.7]
[1742516191115,0.03,128.42,128.4,338.7]
[1742516191811,0.03,128.42,128.4,26.7]
[1742516193319,0.03,128.42,128.4,20.0]
[1742516194114,0.03,128.42,128.4,20.063]
[1742516194706,7.8169,128.42,128.4,20.063]
[1742516197417,7.8169,128.42,128.4,0.063]
[1742516201406,18.64964886,128.41,128.4,0.063]
[1742516201606,18.933972,128.41,128.4,0.063]
[1742516201818,0.14216157,128.4,128.38,0.063]
[1742516202021,136.38432314,128.39,128.38,0.0001]
[1742516202221,155.17613357,128.39,128.38,0.0001]
[1742516202922,162.96483357,128.39,128.38,0.0001]
[1742516204128,26.86483357,128.39,128.38,0.0001]
[1742516206026,27.00699514,128.39,128.38,0.0001]
[1742516206225,18.79181043,128.38,128.37,0.0001]
[1742516207929,26.58111043,128.38,128.37,0.0001]
[1742516208921,27.00759514,128.38,128.37,0.0001]
[1742516209117,27.00759514,128.38,128.36,0.063]
[1742516209118,46.63551043,128.35,128.34,0.063]
[1742516209318,45.633972,128.35,128.34,0.063]
[1742516209527,38.933972,128.35,128.34,0.063]
[1742516210335,46.725072,128.35,128.34,0.063]
[1742516211234,46.86723357,128.35,128.34,0.063]
[1742516212215,46.725072,128.35,128.34,0.063]
[1742516212416,46.86723357,128.35,128.34,0.063]
[1742516215125,38.64964886,128.35,128.34,0.063]
[1742516216133,213.7488,128.39,128.35,20.0]
[1742516216339,7.7881,128.4,128.35,20.0]
[1742516218141,0.03,128.38,128.35,20.0]
[1742516218348,0.03,128.38,128.34,0.063]
[1742516223537,0.03,128.38,128.35,20.0]
[1742516231748,18.67964886,128.38,128.35,20.0]
[1742516231965,154.77964886,128.38,128.34,0.063]
[1742516232452,0.28432314,128.37,128.34,0.063]
[1742516233152,0.42648471,128.37,128.34,0.063]
[1742516233353,18.64964886,128.35,128.34,0.063]
[1742516233557,155.17613357,128.35,128.34,0.063]
[1742516234545,162.96723357,128.35,128.34,0.063]
[1742516235051,26.86723357,128.35,128.34,0.063]
[1742516237447,26.725072,128.35,128.34,0.063]
[1742516237640,26.86723357,128.35,128.34,0.063]
[1742516240140,26.44074886,128.35,128.34,0.063]
[1742516240836,136.13,128.38,128.34,0.063]
[1742516241041,26.43974886,128.37,128.34,0.063]
[1742516241655,136.13,128.38,128.34,20.063]
[1742516241864,0.03,128.38,128.36,20.0]
[1742516242944,0.03,128.37,128.36,20.0]
[1742516244580,0.03,128.37,128.36,27.7905]
[1742516244765,0.03,128.38,128.36,34.4905]
[1742516245079,0.03,128.38,128.36,41.0307]
[1742516245269,0.03,128.38,128.37,1.5593]
[1742516246945,0.03,128.38,128.37,9.3492]
[1742516249571,0.03,128.38,128.36,26.7]
[1742516249870,0.03,128.38,128.36,20.0]
[1742516251473,0.03,128.38,128.36,27.7904]
[1742516252885,0.03,128.38,128.36,20.0]
[1742516253375,0.03,128.38,128.34,20.063]
[1742516253561,0.03,128.38,128.34,26.763]
[1742516253763,0.03,128.38,128.34,20.063]
[1742516253964,0.03,128.38,128.34,26.763]
[1742516254164,0.03,128.38,128.34,20.063]
[1742516254377,136.55648471,128.38,128.34,0.063]
[1742516254877,136.55648471,128.38,128.36,0.063]
[1742516255757,0.14216157,128.36,128.34,0.063]
[1742516256092,0.28432314,128.35,128.34,0.063]
[1742516256962,18.64964886,128.35,128.34,0.063]
[1742516258579,26.44074886,128.35,128.34,0.063]
[1742516263279,13.9641,128.36,128.34,0.063]
[1742516263484,136.1,128.37,128.34,0.063]
[1742516263872,18.64964886,128.37,128.34,0.063]
[1742516265985,0.03,128.38,128.34,0.063]
[1742516266185,0.03,128.38,128.34,20.063]
[1742516267563,18.67964886,128.38,128.34,20.063]
[1742516267790,18.67964886,128.38,128.34,0.063]
[1742516268886,19.07613357,128.37,128.34,0.063]
[1742516269190,18.64964886,128.35,128.34,0.063]
[1742516270285,26.44074886,128.35,128.34,0.063]
[1742516270496,26.725072,128.35,128.34,0.063]
[1742516270872,162.96723357,128.35,128.34,0.063]
[1742516271486,162.825072,128.35,128.34,0.063]
[1742516271672,162.96723357,128.35,128.34,0.063]
[1742516271876,164.48173357,128.35,128.34,0.0001]
[1742516272370,164.62389514,128.35,128.34,0.0001]
[1742516275975,28.52389514,128.35,128.34,0.0001]
[1742516277295,28.38173357,128.35,128.34,0.0001]
[1742516278793,28.239572,128.35,128.34,0.0001]
[1742516278979,26.725072,128.35,128.34,0.0001]
[1742516279793,18.64964886,128.35,128.34,0.0001]
[1742516281090,0.28432314,128.36,128.34,0.0001]
[1742516282094,18.64964886,128.35,128.34,0.0001]
[1742516284096,26.44074886,128.35,128.34,0.0001]
[1742516285097,26.725072,128.35,128.34,0.0001]
[1742516287185,26.86723357,128.35,128.34,0.0001]
[1742516287692,162.96723357,128.35,128.34,0.0001]
[1742516288800,162.825072,128.35,128.34,0.0001]
[1742516289000,162.96723357,128.35,128.34,0.0001]
[1742516289483,162.99723357,128.35,128.34,0.0001]
[1742516289685,163.13939514,128.35,128.34,0.0001]
[1742516289901,169.83939514,128.35,128.34,0.0001]
[1742516290201,176.19689514,128.35,128.34,0.0001]
[1742516293384,40.09689514,128.35,128.34,0.0001]
[1742516294584,27.03939514,128.35,128.34,0.0001]
[1742516294784,26.47074886,128.35,128.34,0.0001]
[1742516295089,26.89723357,128.35,128.34,0.0001]
[1742516295293,26.755072,128.35,128.34,0.0001]
[1742516295695,26.89723357,128.35,128.34,0.0001]
[1742516296189,27.03939514,128.35,128.34,0.0001]
[1742516296392,28.58369514,128.35,128.34,0.0001]
[1742516298810,35.63269514,128.35,128.34,0.0001]
[1742516299200,0.5,128.3,128.28,0.063]
[1742516299505,38.933972,128.27,128.26,0.063]
[1742516300204,39.21829514,128.27,128.26,0.063]
[1742516300714,47.01429514,128.27,128.26,0.063]
[1742516302706,18.933972,128.26,128.25,0.0001]
[1742516304317,26.730572,128.26,128.25,0.0001]
[1742516307716,27.01489514,128.26,128.25,0.0001]
[1742516308010,18.64964886,128.26,128.25,0.0001]
[1742516308407,18.933972,128.26,128.25,0.0001]
[1742516308997,26.730572,128.26,128.25,0.0001]
[1742516309795,27.01489514,128.26,128.25,0.0001]
[1742516319907,28.57839514,128.26,128.25,0.0001]
[1742516320126,34.92059514,128.26,128.25,0.0001]
[1742516325051,34.98359514,128.26,128.25,0.0001]
[1742516327057,18.933972,128.22,128.21,0.0001]
[1742516327350,25.93829514,128.22,128.21,0.0001]
[1742516329071,33.73729514,128.22,128.21,0.0001]
[1742516329269,20.14216157,128.17,128.15,0.063]
[1742516329576,19.07613357,128.16,128.15,0.063]
[1742516329766,18.933972,128.16,128.15,0.063]
[1742516329969,19.07613357,128.16,128.15,0.063]
[1742516331156,18.64964886,128.16,128.15,0.063]
[1742516337553,26.72,128.17,128.15,0.063]
[1742516337852,20.0,128.17,128.15,0.063]
[1742516339276,26.735472,128.18,128.15,0.063]
[1742516339452,18.933972,128.18,128.15,0.063]
[1742516339651,18.64964886,128.18,128.15,0.063]
[1742516341874,26.45114886,128.18,128.15,0.063]
[1742516342378,18.64964886,128.18,128.15,0.063]
[1742516343478,26.45124886,128.18,128.15,0.063]
[1742516350189,26.45234886,128.16,128.15,0.063]
[1742516352679,27.02099514,128.16,128.15,0.063]
[1742516358006,163.12099514,128.16,128.15,0.063]
[1742516359085,162.836672,128.16,128.15,0.063]
[1742516359889,162.55234886,128.16,128.15,0.063]
[1742516362205,154.74964886,128.16,128.15,0.063]
[1742516363591,162.55234886,128.16,128.15,0.063]
[1742516363785,26.45234886,128.16,128.15,0.063]
[1742516364199,18.64964886,128.16,128.15,0.063]
[1742516365329,0.063,128.17,128.15,0.063]
[1742516366012,0.063,128.17,128.16,20.0]
[1742516366614,0.063,128.17,128.16,27.8027]
[1742516371833,0.063,128.17,128.16,20.0]
[1742516372127,0.063,128.17,128.16,27.8027]
[1742516372631,18.64964886,128.22,128.18,20.0]
[1742516373820,18.64964886,128.22,128.18,27.8012]
[1742516374026,18.64964886,128.24,128.2,20.0]
[1742516374322,0.063,128.25,128.22,20.0]
[1742516374524,0.063,128.25,128.22,26.72]
[1742516375425,26.50994886,128.25,128.22,6.72]
[1742516375634,26.50994886,128.25,128.2,20.0]
[1742516377530,7.8603,128.25,128.2,20.0]
[1742516377911,0.063,128.25,128.22,20.0]
[1742516380029,7.8602,128.25,128.22,20.0]
[1742516380509,7.8602,128.25,128.2,20.0]
[1742516381326,7.8602,128.25,128.2,27.8001]
[1742516381628,7.8602,128.25,128.2,20.0]
[1742516382012,0.063,128.25,128.22,20.0]
[1742516385836,0.063,128.25,128.22,27.7989]
[1742516387231,0.063,128.25,128.24,20.0]
[1742516388536,0.063,128.3,128.27,20.0]
[1742516388728,136.1,128.37,128.32,20.0]
[1742516388930,136.13,128.38,128.33,6.7]
[1742516389724,18.64964886,128.37,128.33,6.7]
[1742516390532,26.43964886,128.37,128.33,6.7]
[1742516391031,0.28432314,128.36,128.33,6.7]
[1742516392042,18.64964886,128.37,128.33,6.7]
[1742516392822,26.43964886,128.37,128.33,6.7]
[1742516393022,26.43964886,128.37,128.32,26.72]
[1742516393233,162.53964886,128.37,128.32,26.72]
[1742516393427,154.74964886,128.37,128.32,26.72]
[1742516394040,162.53964886,128.37,128.32,26.72]
[1742516394936,162.53964886,128.37,128.32,20.0]
[1742516395145,162.53964886,128.37,128.32,26.7]
[1742516395325,162.53964886,128.37,128.32,34.4929]
[1742516395923,154.74964886,128.37,128.32,34.4929]
[1742516396442,162.53964886,128.37,128.32,34.4929]
[1742516399744,162.53964886,128.37,128.32,26.7]
[1742516401042,162.53964886,128.37,128.32,20.0]
[1742516401241,162.53964886,128.37,128.32,26.7]
[1742516402346,154.74964886,128.37,128.32,34.4928]
[1742516402528,18.67964886,128.38,128.34,20.0]
[1742516402846,0.03,128.38,128.34,20.0]
[1742516403046,0.03,128.38,128.35,7.7911]
[1742516403240,0.03,128.38,128.36,6.7]
[1742516403643,0.03,128.38,128.36,26.7]
[1742516405451,0.063,128.39,128.38,20.0]
[1742516406348,0.063,128.39,128.36,26.7]
[1742516407637,0.063,128.39,128.38,20.0]
[1742516411837,0.063,128.39,128.36,26.7]
[1742516412154,0.063,128.39,128.36,20.0]
[1742516412337,0.063,128.39,128.35,6.72]
[1742516413058,18.64964886,128.38,128.35,6.72]
[1742516413436,7.8517,128.39,128.35,6.72]
[1742516415637,7.8517,128.39,128.34,20.063]
[1742516415958,7.8517,128.39,128.34,26.763]
[1742516416154,7.8517,128.39,128.34,34.5545]
[1742516416340,7.8517,128.39,128.36,20.0]
[1742516416341,0.063,128.39,128.36,20.0]
[1742516417053,7.8517,128.39,128.36,20.0]
[1742516417262,0.063,128.39,128.36,20.0]
[1742516417640,0.063,128.39,128.36,27.7901]
[1742516418059,0.03,128.42,128.38,20.0]
[1742516418238,0.03,128.42,128.38,26.72]
[1742516419257,0.03,128.44,128.41,20.0]
[1742516435272,0.03,128.44,128.43,20.0]
[1742516437577,0.03,128.44,128.43,27.7863]
[1742516438175,0.03,128.44,128.43,20.0]
[1742516438773,0.03,128.44,128.43,27.7863]
[1742516439064,0.03,128.44,128.43,20.0]
[1742516442463,0.03,128.44,128.41,20.0]
[1742516443755,0.03,128.44,128.39,26.7]
[1742516444977,18.64964886,128.43,128.39,34.4887]
[1742516445566,18.64964886,128.43,128.39,26.7]
[1742516447477,7.7869,128.42,128.39,26.7]
[1742516449261,7.7866,128.43,128.39,34.4887]
[1742516449483,0.03,128.44,128.41,20.0]
[1742516449689,0.03,128.44,128.41,27.7875]
[1742516450269,0.03,128.44,128.41,20.0]
[1742516455969,0.03,128.44,128.41,27.7874]
[1742516461188,0.03,128.44,128.41,20.0]
[1742516462195,6.5853,128.43,128.39,20.0]
[1742516462685,8.15,128.43,128.39,20.0]
[1742516464201,7.7869,128.42,128.39,20.0]
[1742516466497,1.5647,128.43,128.41,20.0]
[1742516466906,9.3511,128.43,128.39,20.0]
[1742516467089,18.64964886,128.42,128.39,20.0]
[1742516467398,6.5853,128.41,128.38,0.063]
[1742516467592,18.64964886,128.4,128.38,0.063]
[1742516468607,7.7887,128.39,128.38,0.063]
[1742516471500,26.43834886,128.39,128.38,0.063]
[1742516472083,28.00304886,128.39,128.38,0.063]
[1742516472509,28.287372,128.39,128.38,0.063]
[1742516472714,28.57169514,128.39,128.38,0.0001]
[1742516472919,0.28432314,128.37,128.36,0.063]
[1742516473095,26.723872,128.37,128.36,0.063]
[1742516473605,27.00819514,128.37,128.36,0.063]
[1742516473982,26.86603357,128.37,128.36,0.063]
[1742516474191,27.00819514,128.37,128.36,0.063]
[1742516476107,26.723872,128.37,128.36,0.063]
[1742516476307,18.64964886,128.37,128.36,0.063]
[1742516476730,26.43954886,128.37,128.36,0.063]
[1742516478336,26.723872,128.37,128.36,0.063]
[1742516482246,26.86603357,128.37,128.36,0.063]
[1742516482444,18.64964886,128.37,128.36,0.063]
[1742516482635,33.02434886,128.38,128.36,0.063]
[1742516491459,33.05434886,128.38,128.36,0.063]
[1742516493145,26.46904886,128.38,128.36,0.063]
[1742516494046,18.67964886,128.38,128.36,0.063]
[1742516495045,0.03,128.38,128.36,0.063]
[1742516497960,18.67964886,128.38,128.36,0.063]
[1742516498150,8.07422314,128.37,128.36,0.063]
[1742516498451,33.29913357,128.37,128.36,0.063]
[1742516498754,0.28432314,128.35,128.34,0.063]
[1742516499128,20.72193357,128.35,128.34,0.063]
[1742516499538,20.86409514,128.35,128.34,0.063]
[1742516499953,20.86409514,128.35,128.34,0.0001]
[1742516500267,28.65519514,128.35,128.34,0.0001]
[1742516503133,35.08829514,128.35,128.34,0.0001]
[1742516504247,0.28432314,128.31,128.26,0.063]
[1742516504551,18.64964886,128.3,128.26,20.063]
[1742516504734,6.98432314,128.32,128.26,27.8595]
[1742516504926,18.933972,128.34,128.28,20.0]
[1742516505133,18.79181043,128.34,128.28,26.7]
[1742516505336,0.28432314,128.33,128.28,26.7]
[1742516505736,18.64964886,128.32,128.28,34.4952]
[1742516506356,18.64964886,128.32,128.28,26.7]
[1742516509347,7.7935,128.32,128.28,26.7]
[1742516515358,7.7935,128.32,128.26,27.8596]
[1742516515565,7.7935,128.32,128.26,34.5596]
[1742516516366,26.44344886,128.31,128.26,34.5596]
[1742516516667,26.44344886,128.31,128.26,26.763]
[1742516517743,26.44344886,128.31,128.26,34.5596]
[1742516518046,26.44344886,128.31,128.26,26.763]
[1742516519563,26.44344886,128.31,128.26,34.5595]
[1742516520553,26.44344886,128.31,128.26,26.763]
[1742516521068,26.44344886,128.31,128.26,34.5596]
[1742516524060,26.44344886,128.31,128.26,346.5596]
[1742516525160,26.44344886,128.31,128.26,34.5596]
[1742516528169,18.64964886,128.33,128.28,20.0]
[1742516530876,26.44234886,128.33,128.28,27.795]
[1742516533568,26.44234886,128.33,128.28,20.0]
[1742516534153,26.44234886,128.33,128.28,332.0]
[1742516535282,26.44234886,128.33,128.28,339.7954]
[1742516536176,26.44234886,128.33,128.28,27.7954]
[1742516536677,26.44234886,128.33,128.28,20.0]
[1742516537779,0.28432314,128.32,128.28,20.0]
[1742516537957,0.28432314,128.32,128.26,20.063]
[1742516538676,7.7936,128.31,128.26,26.763]
[1742516539560,18.64964886,128.3,128.26,26.763]
[1742516540953,26.44404886,128.3,128.26,34.5595]
[1742516542475,18.64964886,128.31,128.26,34.5595]
[1742516544578,136.1,128.32,128.29,20.0]
[1742516544770,26.47164886,128.34,128.29,20.0]
[1742516546880,0.03,128.34,128.29,29.428]
[1742516547065,0.03,128.34,128.31,20.0]
[1742516547267,0.03,128.34,128.33,20.0]
[1742516548683,18.67964886,128.38,128.33,27.7924]
[1742516548869,0.03,128.38,128.35,20.0]
[1742516549059,0.03,128.38,128.35,26.7]
[1742516550988,0.03,128.38,128.35,34.4911]
[1742516551185,0.03,128.38,128.35,26.7]
[1742516551885,0.03,128.38,128.35,34.4911]
[1742516552189,143.887,128.42,128.37,20.0]
[1742516552488,7.787,128.42,128.37,20.0]
[1742516552993,18.64964886,128.41,128.37,20.0]
[1742516554391,7.7881,128.4,128.37,20.0]
[1742516555981,27.2585,128.4,128.35,26.7]
[1742516557797,7.7893,128.38,128.35,26.7]
[1742516558974,7.7893,128.38,128.35,20.0]
[1742516559803,19.4734,128.38,128.34,6.7]
[1742516560001,18.64964886,128.37,128.33,20.0]
[1742516561693,26.44004886,128.37,128.33,20.0]
[1742516563104,26.44004886,128.37,128.33,20.063]
[1742516565889,26.44004886,128.37,128.33,0.063]
[1742516565890,45.91494886,128.37,128.33,0.063]
[1742516566076,18.64964886,128.35,128.33,0.063]
[1742516567186,7.7918,128.34,128.33,0.063]
[1742516568805,26.44144886,128.34,128.33,0.063]
[1742516570309,7.7918,128.34,128.33,0.063]
[1742516571478,8.07612314,128.34,128.33,0.063]
[1742516574799,8.21828471,128.34,128.33,0.063]
[1742516575379,8.07612314,128.34,128.33,0.063]
[1742516577185,8.07612314,128.34,128.28,6.7]
[1742516577186,182.58959514,128.34,128.28,6.7]
[1742516577504,0.28432314,128.32,128.27,20.0]
[1742516577705,7.7936,128.31,128.27,20.0]
[1742516578413,18.64964886,128.33,128.29,20.0]
[1742516578595,18.64964886,128.33,128.29,26.7]